[Event "Titled Tuesday Blitz August 31 2021"]
[White "Wong, Yinn Long"]
[Black "Timofeev, Artyom"]
[WhiteFideId "5707684"]
[BlackFideId "4140419"]
[WhiteElo "2016"]
[BlackElo "2582"]
[Result "1/2-1/2"]
[Round "11"]
[TimeControl "180+1"]
[Date "2021.08.31"]
[WhiteClock "0:00:09"]
[BlackClock "0:00:17"]

1. e4 {[%clk 0:03:00]}  e6 {[%clk 0:02:59]} 2. d3 {[%clk 0:02:59]}  c5 {[%clk 0:02:57]} 3. Nd2 {[%clk 0:02:56]}  Nc6 {[%clk 0:02:57]} 4. g3 {[%clk 0:02:56]}  g6 {[%clk 0:02:57]} 5. Bg2 {[%clk 0:02:56]}  Bg7 {[%clk 0:02:57]} 6. Ngf3 {[%clk 0:02:55]}  Nge7 {[%clk 0:02:57]} 7. O-O {[%clk 0:02:55]}  O-O {[%clk 0:02:57]} 8. Re1 {[%clk 0:02:55]}  d5 {[%clk 0:02:53]} 9. c3 {[%clk 0:02:48]}  b6 {[%clk 0:02:52]} 10. e5 {[%clk 0:02:46]}  h6 {[%clk 0:02:46]} 11. Nf1 {[%clk 0:02:39]}  Ba6 {[%clk 0:02:39]} 12. h4 {[%clk 0:02:35]}  f6 {[%clk 0:02:31]} 13. exf6 {[%clk 0:02:32]}  Rxf6 {[%clk 0:02:32]} 14. N1h2 {[%clk 0:02:24]}  Kh7 {[%clk 0:02:22]} 15. Bf4 {[%clk 0:02:07]}  Rxf4 {[%clk 0:02:12]} 16. gxf4 {[%clk 0:02:07]}  Qd6 {[%clk 0:02:13]} 17. Ne5 {[%clk 0:02:02]}  Nxe5 {[%clk 0:02:08]} 18. fxe5 {[%clk 0:02:03]}  Bxe5 {[%clk 0:02:08]} 19. Nf3 {[%clk 0:01:44]}  Bg7 {[%clk 0:02:05]} 20. Qe2 {[%clk 0:01:41]}  Bc8 {[%clk 0:01:53]} 21. Ne5 {[%clk 0:01:33]}  Nf5 {[%clk 0:01:49]} 22. h5 {[%clk 0:01:23]}  gxh5 {[%clk 0:01:48]} 23. Nf7 {[%clk 0:01:12]}  Qf8 {[%clk 0:01:38]} 24. Qxh5 {[%clk 0:01:09]}  Kg8 {[%clk 0:01:31]} 25. Ne5 {[%clk 0:01:07]}  Qf6 {[%clk 0:01:17]} 26. Ng4 {[%clk 0:01:03]}  Qf7 {[%clk 0:01:04]} 27. Qxf7+ {[%clk 0:01:03]}  Kxf7 {[%clk 0:01:04]} 28. Ne3 {[%clk 0:01:04]}  Ne7 {[%clk 0:01:03]} 29. Rad1 {[%clk 0:01:02]}  Bb7 {[%clk 0:01:01]} 30. f4 {[%clk 0:01:02]}  Rg8 {[%clk 0:01:00]} 31. Ng4 {[%clk 0:00:54]}  Nf5 {[%clk 0:00:55]} 32. Kf2 {[%clk 0:00:54]}  a5 {[%clk 0:00:49]} 33. Ne5+ {[%clk 0:00:47]}  Bxe5 {[%clk 0:00:49]} 34. Rxe5 {[%clk 0:00:45]}  Kf6 {[%clk 0:00:48]} 35. Rde1 {[%clk 0:00:43]}  Bc8 {[%clk 0:00:48]} 36. Bh3 {[%clk 0:00:41]}  Ng7 {[%clk 0:00:48]} 37. f5 {[%clk 0:00:38]}  exf5 {[%clk 0:00:35]} 38. Rxd5 {[%clk 0:00:37]}  Be6 {[%clk 0:00:35]} 39. Rd6 {[%clk 0:00:37]}  Rb8 {[%clk 0:00:36]} 40. d4 {[%clk 0:00:33]}  cxd4 {[%clk 0:00:35]} 41. cxd4 {[%clk 0:00:34]}  Kf7 {[%clk 0:00:33]} 42. d5 {[%clk 0:00:27]}  Bc8 {[%clk 0:00:33]} 43. Rxh6 {[%clk 0:00:26]}  Ba6 {[%clk 0:00:31]} 44. Re5 {[%clk 0:00:23]}  Bc4 {[%clk 0:00:29]} 45. Bxf5 {[%clk 0:00:22]}  Bxa2 {[%clk 0:00:27]} 46. Bd3 {[%clk 0:00:18]}  Rf8 {[%clk 0:00:26]} 47. Ke3 {[%clk 0:00:18]}  Rd8 {[%clk 0:00:23]} 48. Rxb6 {[%clk 0:00:15]}  Rxd5 {[%clk 0:00:22]} 49. Rxd5 {[%clk 0:00:15]}  Bxd5 {[%clk 0:00:22]} 50. Rb5 {[%clk 0:00:15]}  Ke6 {[%clk 0:00:23]} 51. Rxa5 {[%clk 0:00:15]}  Kd6 {[%clk 0:00:23]} 52. b4 {[%clk 0:00:15]}  Ne6 {[%clk 0:00:24]} 53. Ra6+ {[%clk 0:00:15]}  Ke5 {[%clk 0:00:23]} 54. Ra5 {[%clk 0:00:13]}  Kd6 {[%clk 0:00:24]} 55. Be4 {[%clk 0:00:14]}  Bc4 {[%clk 0:00:24]} 56. Bf5 {[%clk 0:00:13]}  Nc7 {[%clk 0:00:23]} 57. Kd4 {[%clk 0:00:13]}  Bf7 {[%clk 0:00:22]} 58. Bd3 {[%clk 0:00:12]}  Ne6+ {[%clk 0:00:21]} 59. Kc3 {[%clk 0:00:12]}  Nc7 {[%clk 0:00:21]} 60. Bc4 {[%clk 0:00:13]}  Be8 {[%clk 0:00:21]} 61. Rg5 {[%clk 0:00:12]}  Bd7 {[%clk 0:00:20]} 62. Rg1 {[%clk 0:00:12]}  Bc6 {[%clk 0:00:20]} 63. Rd1+ {[%clk 0:00:12]}  Ke5 {[%clk 0:00:19]} 64. Re1+ {[%clk 0:00:12]}  Kd6 {[%clk 0:00:19]} 65. Kd4 {[%clk 0:00:12]}  Bd7 {[%clk 0:00:18]} 66. Rg1 {[%clk 0:00:12]}  Bf5 {[%clk 0:00:17]} 67. Rg5 {[%clk 0:00:12]}  Bc2 {[%clk 0:00:17]} 68. b5 {[%clk 0:00:13]}  Na8 {[%clk 0:00:16]} 69. Rh5 {[%clk 0:00:11]}  Nb6 {[%clk 0:00:16]} 70. Rh6+ {[%clk 0:00:12]}  Kc7 {[%clk 0:00:16]} 71. Rc6+ {[%clk 0:00:10]}  Kb7 {[%clk 0:00:17]} 72. Bd5 {[%clk 0:00:09]}  Ba4 {[%clk 0:00:15]} 73. Kc5 {[%clk 0:00:07]}  Nxd5 {[%clk 0:00:15]} 74. Rh6 {[%clk 0:00:05]}  Bxb5 {[%clk 0:00:15]} 75. Kxb5 {[%clk 0:00:05]}  Nc7+ {[%clk 0:00:15]} 76. Kc5 {[%clk 0:00:06]}  Na6+ {[%clk 0:00:15]} 77. Kd6 {[%clk 0:00:07]}  Kb6 {[%clk 0:00:15]} 78. Rh1 {[%clk 0:00:07]}  Kb5 {[%clk 0:00:15]} 79. Rb1+ {[%clk 0:00:08]}  Kc4 {[%clk 0:00:16]} 80. Kc6 {[%clk 0:00:09]}  Nb4+ {[%clk 0:00:16]} 81. Kd6 {[%clk 0:00:09]}  Nd3 {[%clk 0:00:17]} 82. Rb8 {[%clk 0:00:09]}  Kd4 {[%clk 0:00:16]} 83. Ra8 {[%clk 0:00:09]}  Kc4 {[%clk 0:00:17]} 84. Rh8 {[%clk 0:00:09]}  Kd4 {[%clk 0:00:17]} 85. Rh4+ {[%clk 0:00:10]}  Ke3 {[%clk 0:00:18]} 86. Kd5 {[%clk 0:00:10]}  Nf4+ {[%clk 0:00:18]} 87. Ke5 {[%clk 0:00:10]}  Nd3+ {[%clk 0:00:18]} 88. Kf5 {[%clk 0:00:11]}  Kd2 {[%clk 0:00:19]} 89. Rh3 {[%clk 0:00:11]}  Ke2 {[%clk 0:00:17]} 90. Rh2+ {[%clk 0:00:10]}  Ke3 {[%clk 0:00:17]} 91. Rh1 {[%clk 0:00:10]}  Kd4 {[%clk 0:00:17]} 92. Rd1 {[%clk 0:00:10]}  Kc4 {[%clk 0:00:17]} 93. Ke6 {[%clk 0:00:11]}  Kd4 {[%clk 0:00:17]} 94. Kd6 {[%clk 0:00:10]}  Ke4 {[%clk 0:00:18]} 95. Rf1 {[%clk 0:00:11]}  Kd4 {[%clk 0:00:18]} 96. Rg1 {[%clk 0:00:10]}  Ke4 {[%clk 0:00:18]} 97. Rg4+ {[%clk 0:00:11]}  Nf4 {[%clk 0:00:19]} 98. Rh4 {[%clk 0:00:10]}  Kf5 {[%clk 0:00:19]} 99. Rh1 {[%clk 0:00:10]}  Ke4 {[%clk 0:00:19]} 100. Rf1 {[%clk 0:00:11]}  Nd3 {[%clk 0:00:18]} 101. Rf8 {[%clk 0:00:10]}  Kd4 {[%clk 0:00:18]} 102. Ke6 {[%clk 0:00:11]}  Ke4 {[%clk 0:00:18]} 103. Rh8 {[%clk 0:00:11]}  Nf4+ {[%clk 0:00:18]} 104. Kd6 {[%clk 0:00:11]}  Kd4 {[%clk 0:00:18]} 105. Re8 {[%clk 0:00:10]}  Nd3 {[%clk 0:00:18]} 106. Re2 {[%clk 0:00:10]}  Nf4 {[%clk 0:00:17]} 107. Ra2 {[%clk 0:00:09]}  Ke4 {[%clk 0:00:17]} 108. Ra4+ {[%clk 0:00:10]}  Kf5 {[%clk 0:00:17]} 109. Ke7 {[%clk 0:00:09]}  Ke5 {[%clk 0:00:17]} 110. Ra5+ {[%clk 0:00:09]}  Nd5+ {[%clk 0:00:17]} 111. Kd7 {[%clk 0:00:09]}  Kd4 {[%clk 0:00:18]} 112. Ra4+ {[%clk 0:00:09]}  Ke5 {[%clk 0:00:17]} 113. Rh4 {[%clk 0:00:10]}  Nf6+ {[%clk 0:00:17]} 114. Ke7 {[%clk 0:00:10]}  Nd5+ {[%clk 0:00:17]} 115. Kd7 {[%clk 0:00:09]} 1/2-1/2


[Site "https://www.chess.com"]

[Event "Titled Tuesday Blitz August 31 2021"]
[White "Yeletsky, Ivan"]
[Black "Khoroshev, Nikita"]
[WhiteFideId "24180327"]
[BlackFideId "14200287"]
[WhiteElo "2344"]
[BlackElo "2328"]
[Result "1-0"]
[Round "11"]
[TimeControl "180+1"]
[Date "2021.08.31"]
[WhiteClock "0:00:06"]
[BlackClock "0:00:04"]

1. Nf3 {[%clk 0:03:00]}  Nf6 {[%clk 0:02:59]} 2. g3 {[%clk 0:03:01]}  g6 {[%clk 0:02:59]} 3. d3 {[%clk 0:03:01]}  Bg7 {[%clk 0:03:00]} 4. Bg2 {[%clk 0:03:01]}  O-O {[%clk 0:03:01]} 5. O-O {[%clk 0:03:01]}  d5 {[%clk 0:03:01]} 6. Bf4 {[%clk 0:03:01]}  c5 {[%clk 0:03:02]} 7. c4 {[%clk 0:03:01]}  Nc6 {[%clk 0:03:01]} 8. Ne5 {[%clk 0:03:01]}  Nh5 {[%clk 0:02:56]} 9. Nxc6 {[%clk 0:03:00]}  bxc6 {[%clk 0:02:57]} 10. Bc1 {[%clk 0:03:01]}  Rb8 {[%clk 0:02:55]} 11. Qc2 {[%clk 0:03:01]}  dxc4 {[%clk 0:02:50]} 12. dxc4 {[%clk 0:03:00]}  Bf5 {[%clk 0:02:50]} 13. e4 {[%clk 0:02:58]}  Be6 {[%clk 0:02:50]} 14. Nd2 {[%clk 0:02:45]}  Qd4 {[%clk 0:02:42]} 15. Rb1 {[%clk 0:02:40]}  Rfd8 {[%clk 0:02:41]} 16. Bf3 {[%clk 0:02:11]}  f5 {[%clk 0:02:38]} 17. Rd1 {[%clk 0:02:09]}  fxe4 {[%clk 0:02:32]} 18. Nxe4 {[%clk 0:01:58]}  Qxc4 {[%clk 0:02:32]} 19. Qxc4 {[%clk 0:01:57]}  Bxc4 {[%clk 0:02:32]} 20. Bg5 {[%clk 0:01:41]}  Rxd1+ {[%clk 0:02:26]} 21. Rxd1 {[%clk 0:01:40]}  Bd5 {[%clk 0:02:16]} 22. b3 {[%clk 0:01:31]}  Bd4 {[%clk 0:02:12]} 23. Nd2 {[%clk 0:01:07]}  e5 {[%clk 0:01:56]} 24. Be2 {[%clk 0:00:56]}  Rf8 {[%clk 0:01:53]} 25. Rf1 {[%clk 0:00:56]}  Ng7 {[%clk 0:01:46]} 26. Nc4 {[%clk 0:00:47]}  Nf5 {[%clk 0:01:40]} 27. Bd2 {[%clk 0:00:37]}  h5 {[%clk 0:01:34]} 28. Bg5 {[%clk 0:00:34]}  Ng7 {[%clk 0:01:30]} 29. Ne3 {[%clk 0:00:32]}  Ne6 {[%clk 0:01:26]} 30. Bh6 {[%clk 0:00:30]}  Rf7 {[%clk 0:01:24]} 31. h4 {[%clk 0:00:24]}  Kh7 {[%clk 0:01:22]} 32. Bg5 {[%clk 0:00:23]}  Nxg5 {[%clk 0:01:11]} 33. hxg5 {[%clk 0:00:24]}  Bf3 {[%clk 0:01:07]} 34. Bxf3 {[%clk 0:00:19]}  Rxf3 {[%clk 0:01:08]} 35. Kg2 {[%clk 0:00:20]}  e4 {[%clk 0:01:08]} 36. Nc4 {[%clk 0:00:20]}  Rf5 {[%clk 0:01:06]} 37. Nd6 {[%clk 0:00:19]}  Rxg5 {[%clk 0:01:06]} 38. Nxe4 {[%clk 0:00:19]}  Rf5 {[%clk 0:01:05]} 39. f3 {[%clk 0:00:18]}  Kg7 {[%clk 0:01:04]} 40. Rc1 {[%clk 0:00:15]}  Re5 {[%clk 0:01:00]} 41. a3 {[%clk 0:00:13]}  a5 {[%clk 0:00:57]} 42. Rc4 {[%clk 0:00:13]}  Be3 {[%clk 0:00:54]} 43. Ra4 {[%clk 0:00:12]}  Rd5 {[%clk 0:00:23]} 44. Rxa5 {[%clk 0:00:12]}  Rd3 {[%clk 0:00:23]} 45. Ra7+ {[%clk 0:00:13]}  Kf8 {[%clk 0:00:21]} 46. Rb7 {[%clk 0:00:13]}  Bd4 {[%clk 0:00:18]} 47. a4 {[%clk 0:00:09]}  Rd1 {[%clk 0:00:17]} 48. f4 {[%clk 0:00:06]}  Ra1 {[%clk 0:00:16]} 49. Kf3 {[%clk 0:00:05]}  Ra3 {[%clk 0:00:16]} 50. Ke2 {[%clk 0:00:05]}  c4 {[%clk 0:00:14]} 51. bxc4 {[%clk 0:00:04]}  Re3+ {[%clk 0:00:14]} 52. Kd2 {[%clk 0:00:03]}  Rxe4 {[%clk 0:00:14]} 53. Kd3 {[%clk 0:00:04]}  Re3+ {[%clk 0:00:10]} 54. Kxd4 {[%clk 0:00:04]}  Rxg3 {[%clk 0:00:11]} 55. Ke5 {[%clk 0:00:03]}  Ra3 {[%clk 0:00:11]} 56. Kf6 {[%clk 0:00:02]}  Ke8 {[%clk 0:00:11]} 57. Re7+ {[%clk 0:00:02]}  Kd8 {[%clk 0:00:11]} 58. Rg7 {[%clk 0:00:03]}  Rxa4 {[%clk 0:00:11]} 59. Rxg6 {[%clk 0:00:03]}  Rxc4 {[%clk 0:00:11]} 60. f5 {[%clk 0:00:04]}  h4 {[%clk 0:00:12]} 61. Rh6 {[%clk 0:00:04]}  Kc7 {[%clk 0:00:11]} 62. Ke7 {[%clk 0:00:04]}  Re4+ {[%clk 0:00:10]} 63. Kf7 {[%clk 0:00:04]}  c5 {[%clk 0:00:11]} 64. f6 {[%clk 0:00:04]}  c4 {[%clk 0:00:11]} 65. Kg6 {[%clk 0:00:03]}  c3 {[%clk 0:00:09]} 66. f7 {[%clk 0:00:04]}  Rf4 {[%clk 0:00:09]} 67. Rxh4 {[%clk 0:00:03]}  Rxh4 {[%clk 0:00:05]} 68. f8=Q {[%clk 0:00:03]}  Kc6 {[%clk 0:00:04]} 69. Qc8+ {[%clk 0:00:02]}  Kb5 {[%clk 0:00:03]} 70. Qxc3 {[%clk 0:00:03]}  Rc4 {[%clk 0:00:02]} 71. Qd3 {[%clk 0:00:04]}  Kc5 {[%clk 0:00:03]} 72. Kf5 {[%clk 0:00:04]}  Rd4 {[%clk 0:00:04]} 73. Qe3 {[%clk 0:00:04]}  Kd5 {[%clk 0:00:05]} 74. Qe6+ {[%clk 0:00:04]}  Kc5 {[%clk 0:00:05]} 75. Ke5 {[%clk 0:00:05]}  Rd3 {[%clk 0:00:05]} 76. Qc8+ {[%clk 0:00:05]}  Kb4 {[%clk 0:00:05]} 77. Qc6 {[%clk 0:00:05]}  Rc3 {[%clk 0:00:04]} 78. Qb6+ {[%clk 0:00:06]}  Kc4 {[%clk 0:00:05]} 79. Ke4 {[%clk 0:00:06]}  Rb3 {[%clk 0:00:04]} 80. Qc6+ {[%clk 0:00:06]}  Kb4 {[%clk 0:00:04]} 81. Kd4 {[%clk 0:00:07]}  Ka3 {[%clk 0:00:04]} 82. Qa6+ {[%clk 0:00:06]}  Kb2 {[%clk 0:00:05]} 83. Qe2+ {[%clk 0:00:04]}  Ka3 {[%clk 0:00:05]} 84. Kc4 {[%clk 0:00:05]}  Rb4+ {[%clk 0:00:05]} 85. Kc5 {[%clk 0:00:05]}  Rb3 {[%clk 0:00:05]} 86. Qd2 {[%clk 0:00:05]}  Rb2 {[%clk 0:00:02]} 87. Qc1 {[%clk 0:00:05]}  Ka2 {[%clk 0:00:02]} 88. Qc4+ {[%clk 0:00:04]}  Rb3 {[%clk 0:00:03]} 89. Qa4+ {[%clk 0:00:04]}  Ra3 {[%clk 0:00:03]} 90. Qc2+ {[%clk 0:00:03]}  Ka1 {[%clk 0:00:04]} 91. Kb4 {[%clk 0:00:04]}  Rb3+ {[%clk 0:00:03]} 92. Kc4 {[%clk 0:00:04]}  Rb4+ {[%clk 0:00:02]} 93. Kd5 {[%clk 0:00:04]}  Rb5+ {[%clk 0:00:02]} 94. Ke4 {[%clk 0:00:05]}  Rb4+ {[%clk 0:00:02]} 95. Kf3 {[%clk 0:00:05]}  Rf4+ {[%clk 0:00:03]} 96. Ke3 {[%clk 0:00:05]}  Rf3+ {[%clk 0:00:03]} 97. Kd4 {[%clk 0:00:05]}  Rf4+ {[%clk 0:00:03]} 98. Ke5 {[%clk 0:00:06]}  Rb4 {[%clk 0:00:02]} 99. Qc3+ {[%clk 0:00:06]}  Rb2 {[%clk 0:00:03]} 100. Kd4 {[%clk 0:00:06]}  Ka2 {[%clk 0:00:04]} 101. Qa5+ {[%clk 0:00:05]}  Kb1 {[%clk 0:00:04]} 102. Kc3 {[%clk 0:00:06]}  Rc2+ {[%clk 0:00:04]} 103. Kd3 {[%clk 0:00:05]}  Rb2 {[%clk 0:00:05]} 104. Qa4 {[%clk 0:00:04]}  Kc1 {[%clk 0:00:03]} 105. Qa1+ {[%clk 0:00:04]}  Rb1 {[%clk 0:00:02]} 106. Qc3+ {[%clk 0:00:05]}  Kd1 {[%clk 0:00:03]} 107. Qc2+ {[%clk 0:00:06]}  Ke1 {[%clk 0:00:04]} 108. Qe2# {[%clk 0:00:06]} 1-0


[Site "https://www.chess.com"]